fUSD/lending_fUSD_20260601
["ID","MTS","AMOUNT","RATE_DAILY","PERIOD"]
[423643088,1780271470000,-212.801236,0.00038356,30]
[423643086,1780271470000,-151.0,0.00038356,30]
[423643087,1780271470000,-328.38579,0.00038356,30]
[423643081,1780271470000,-174.303912,0.00038356,30]
[423643083,1780271470000,-328.38579,0.00038356,30]
[423643090,1780271470000,-151.0,0.00038356,30]
[423643089,1780271470000,-174.303912,0.00038356,30]
[423643084,1780271470000,-212.801236,0.00038356,30]
[423643093,1780271470000,-151.0,0.00038356,30]
[423643027,1780271470000,-163.440292,0.00038356,30]
[423643094,1780271470000,-174.303912,0.00038356,30]
[423643082,1780271470000,-151.0,0.00038356,30]
[423643062,1780271470000,-212.801236,0.00038356,30]
[423643077,1780271470000,-328.38579,0.00038356,30]
[423643065,1780271470000,-212.801236,0.00038356,30]
[423643033,1780271470000,-163.440292,0.00038356,30]
[423643032,1780271470000,-151.0,0.00038356,30]
[423643034,1780271470000,-151.0,0.00038356,30]
[423643031,1780271470000,-163.440292,0.00038356,30]
[423643040,1780271470000,-151.0,0.00038356,30]
[423643038,1780271470000,-151.0,0.00038356,30]
[423643042,1780271470000,-151.0,0.00038356,30]
[423643041,1780271470000,-163.440292,0.00038356,30]
[423643048,1780271470000,-151.0,0.00038356,30]
[423643055,1780271470000,-166.80716,0.00038356,30]
[423643047,1780271470000,-163.440292,0.00038356,30]
[423643039,1780271470000,-163.440292,0.00038356,30]
[423643045,1780271470000,-163.440292,0.00038356,30]
[423643049,1780271470000,-163.440288,0.00038356,30]
[423643043,1780271470000,-163.440292,0.00038356,30]
[423643046,1780271470000,-151.0,0.00038356,30]
[423643050,1780271470000,-151.0,0.00038356,30]
[423643051,1780271470000,-151.0,0.00038356,30]
[423643053,1780271470000,-151.0,0.00038356,30]
[423643063,1780271470000,-212.801236,0.00038356,30]
[423643064,1780271470000,-174.303912,0.00038356,30]
[423643052,1780271470000,-183.468562,0.00038356,30]
[423643054,1780271470000,-211.797013,0.00038356,30]
[423643060,1780271470000,-212.801236,0.00038356,30]
[423643058,1780271470000,-212.801236,0.00038356,30]
[423643056,1780271470000,-212.801236,0.00038356,30]
[423643061,1780271470000,-212.801236,0.00038356,30]
[423643044,1780271470000,-151.0,0.00038356,30]
[423643059,1780271470000,-212.801236,0.00038356,30]
[423643129,1780271471000,-151.0,0.00038356,30]
[423643145,1780271471000,-151.0,0.00038356,30]
[423643135,1780271471000,-328.38579,0.00038356,30]
[423643133,1780271471000,-266.388263,0.00038356,30]
[423643146,1780271471000,-208.33154,0.00038356,30]
[423643137,1780271471000,-328.38579,0.00038356,30]
[423643128,1780271471000,-174.303912,0.00038356,30]
[423643144,1780271471000,-208.33154,0.00038356,30]
[423643143,1780271471000,-151.0,0.00038356,30]
[423643134,1780271471000,-151.0,0.00038356,30]
[423643132,1780271471000,-208.33154,0.00038356,30]
[423643138,1780271471000,-198.808524,0.00038356,30]
[423643136,1780271471000,-208.33154,0.00038356,30]
[423643139,1780271471000,-208.33154,0.00038356,30]
[423643153,1780271471000,-208.33154,0.00038356,30]
[423643140,1780271471000,-328.385796,0.00038356,30]
[423643142,1780271471000,-208.33154,0.00038356,30]
[423643147,1780271471000,-237.899583,0.00038356,30]
[423643152,1780271471000,-151.0,0.00038356,30]
[423643151,1780271471000,-208.33154,0.00038356,30]
[423643149,1780271471000,-208.33154,0.00038356,30]
[423643148,1780271471000,-208.33154,0.00038356,30]
[423643150,1780271471000,-151.0,0.00038356,30]
[423643154,1780271471000,-151.0,0.00038356,30]
[423643157,1780271471000,-208.33154,0.00038356,30]
[423643160,1780271471000,-208.33154,0.00038356,30]
[423643158,1780271471000,-151.0,0.00038356,30]
[423643155,1780271471000,-208.33154,0.00038356,30]
[423643127,1780271471000,-328.38579,0.00038356,30]
[423643141,1780271471000,-208.33154,0.00038356,30]
[423643131,1780271471000,-328.38579,0.00038356,30]
[423643096,1780271471000,-151.0,0.00038356,30]
[423643121,1780271471000,-328.38579,0.00038356,30]
[423643097,1780271471000,-174.303912,0.00038356,30]
[423643095,1780271471000,-328.38579,0.00038356,30]
[423643104,1780271471000,-151.0,0.00038356,30]
[423643099,1780271471000,-328.38579,0.00038356,30]
[423643105,1780271471000,-212.801227,0.00038356,30]
[423643098,1780271471000,-212.801236,0.00038356,30]
[423643100,1780271471000,-151.0,0.00038356,30]
[423643102,1780271471000,-328.38579,0.00038356,30]
[423643101,1780271471000,-212.801236,0.00038356,30]
[423643103,1780271471000,-174.303912,0.00038356,30]
[423643106,1780271471000,-328.38579,0.00038356,30]
[423643107,1780271471000,-174.303912,0.00038356,30]
[423643108,1780271471000,-151.0,0.00038356,30]
[423643116,1780271471000,-174.303912,0.00038356,30]
[423643120,1780271471000,-151.0,0.00038356,30]
[423643118,1780271471000,-328.38579,0.00038356,30]
[423643115,1780271471000,-328.38579,0.00038356,30]
[423643109,1780271471000,-328.38579,0.00038356,30]
[423643117,1780271471000,-151.0,0.00038356,30]
[423643113,1780271471000,-174.303912,0.00038356,30]
[423643112,1780271471000,-328.38579,0.00038356,30]
[423643111,1780271471000,-151.0,0.00038356,30]
[423643110,1780271471000,-174.303912,0.00038356,30]
[423643119,1780271471000,-174.303912,0.00038356,30]
[423643130,1780271471000,-208.33154,0.00038356,30]
[423643125,1780271471000,-208.33154,0.00038356,30]
[423643123,1780271471000,-174.303912,0.00038356,30]
[423643122,1780271471000,-151.0,0.00038356,30]
[423643126,1780271471000,-151.0,0.00038356,30]
[423643124,1780271471000,-328.38579,0.00038356,30]
[423643114,1780271471000,-151.0,0.00038356,30]
[423643156,1780271471000,-151.0,0.00038356,30]
[423643164,1780271471000,-151.0,0.00038356,30]
[423643162,1780271471000,-151.0,0.00038356,30]
[423643194,1780271471000,-151.0,0.00038356,30]
[423643193,1780271471000,-151.0,0.00038356,30]
[423643192,1780271471000,-151.0,0.00038356,30]
[423643199,1780271471000,-755.902323,0.00038356,30]
[423643201,1780271471000,-151.0,0.00038356,30]
[423643200,1780271471000,-151.0,0.00038356,30]
[423643202,1780271471000,-755.902323,0.00038356,30]
[423643210,1780271471000,-755.902323,0.00038356,30]
[423643208,1780271471000,-151.738666,0.00038356,30]
[423643212,1780271471000,-151.0,0.00038356,30]
[423643204,1780271471000,-282.216408,0.00038356,30]
[423643205,1780271471000,-755.902323,0.00038356,30]
[423643203,1780271471000,-151.0,0.00038356,30]
[423643211,1780271471000,-151.0,0.00038356,30]
[423643209,1780271471000,-755.902323,0.00038356,30]
[423643206,1780271471000,-151.0,0.00038356,30]
[423643207,1780271471000,-151.0,0.00038356,30]
[423643220,1780271471000,-755.902323,0.00038356,30]
[423643222,1780271471000,-755.902323,0.00038356,30]
[423643221,1780271471000,-755.902323,0.00038356,30]
[423643225,1780271471000,-755.902323,0.00038356,30]
[423643223,1780271471000,-755.902323,0.00038356,30]
[423643213,1780271471000,-755.902323,0.00038356,30]
[423643224,1780271471000,-755.902323,0.00038356,30]
[423643215,1780271471000,-151.0,0.00038356,30]
[423643214,1780271471000,-755.902323,0.00038356,30]
[423643218,1780271471000,-755.902323,0.00038356,30]
[423643217,1780271471000,-755.902323,0.00038356,30]
[423643216,1780271471000,-262.157492,0.00038356,30]
[423643191,1780271471000,-151.0,0.00038356,30]
[423643190,1780271471000,-151.0,0.00038356,30]
[423643219,1780271471000,-755.902323,0.00038356,30]
[423643189,1780271471000,-151.0,0.00038356,30]
[423643198,1780271471000,-151.0,0.00038356,30]
[423643172,1780271471000,-208.331536,0.00038356,30]
[423643173,1780271471000,-151.0,0.00038356,30]
[423643167,1780271471000,-208.33154,0.00038356,30]
[423643165,1780271471000,-166.826065,0.00038356,30]
[423643169,1780271471000,-208.33154,0.00038356,30]
[423643161,1780271471000,-151.0,0.00038356,30]
[423643166,1780271471000,-151.0,0.00038356,30]
[423643163,1780271471000,-208.33154,0.00038356,30]
[423643168,1780271471000,-151.0,0.00038356,30]
[423643171,1780271471000,-204.295005,0.00038356,30]
[423643170,1780271471000,-151.0,0.00038356,30]
[423643174,1780271471000,-151.0,0.00038356,30]
[423643175,1780271471000,-151.0,0.00038356,30]
[423643176,1780271471000,-188.338181,0.00038356,30]
[423643159,1780271471000,-151.0,0.00038356,30]
[423643183,1780271471000,-301.715813,0.00038356,30]
[423643180,1780271471000,-195.123168,0.00038356,30]
[423643186,1780271471000,-151.0,0.00038356,30]
[423643197,1780271471000,-151.0,0.00038356,30]
[423643195,1780271471000,-151.0,0.00038356,30]
[423643187,1780271471000,-151.0,0.00038356,30]
[423643182,1780271471000,-151.0,0.00038356,30]
[423643196,1780271471000,-151.0,0.00038356,30]
[423643185,1780271471000,-151.0,0.00038356,30]
[423643178,1780271471000,-158.385825,0.00038356,30]
[423643179,1780271471000,-183.03325,0.00038356,30]
[423643181,1780271471000,-151.0,0.00038356,30]
[423643177,1780271471000,-182.845547,0.00038356,30]
[423643184,1780271471000,-151.0,0.00038356,30]
[423643188,1780271471000,-151.0,0.00038356,30]
[423643264,1780271472000,-500.0,0.00038548,7]
[423643266,1780271472000,-500.0,0.00038548,7]
[423643258,1780271472000,-2420.64172225,0.00038493,10]
[423643265,1780271472000,-500.0,0.00038548,7]
[423643260,1780271472000,-2420.64172213,0.00038493,10]
[423643261,1780271472000,-2420.64172213,0.00038493,10]
[423643259,1780271472000,-2420.64172213,0.00038493,10]
[423643262,1780271472000,-2420.64172213,0.00038493,10]
[423643263,1780271472000,-500.0,0.00038548,7]
[423643267,1780271472000,-518.8,0.00038548,7]
[423643277,1780271472000,-2319.0,0.00038585,11]
[423643278,1780271472000,-163.0,0.00038592,11]
[423643272,1780271472000,-5000.0,0.00038566,2]
[423643269,1780271472000,-5000.0,0.00038566,2]
[423643271,1780271472000,-5000.0,0.00038566,2]
[423643268,1780271472000,-157.99575144,0.00038557,2]
[423643275,1780271472000,-250.0,0.00038566,2]
[423643276,1780271472000,-250.0,0.00038566,2]
[423643254,1780271472000,-1703.87007754,0.0003842,30]
[423643273,1780271472000,-250.0,0.00038566,2]
[423643270,1780271472000,-5000.0,0.00038566,2]
[423643274,1780271472000,-250.0,0.00038566,2]
[423643280,1780271472000,-350.0,0.00038631,4]
[423643281,1780271472000,-2350.0309,0.0003864,30]
[423643282,1780271472000,-152.0,0.00038653,7]
[423643284,1780271472000,-320.0,0.00038669,53]
[423643283,1780271472000,-2000.0,0.00038661,120]
[423643279,1780271472000,-320.0,0.0003863,52]
[423643256,1780271472000,-2000.0,0.0003847,120]
[423643248,1780271472000,-1250.0,0.00038405,2]
[423643257,1780271472000,-200.0,0.00038479,20]
[423643288,1780271472000,-1590.0,0.00038711,11]
[423643226,1780271472000,-755.902323,0.00038356,30]
[423643230,1780271472000,-151.0,0.00038356,30]
[423643238,1780271472000,-151.0,0.00038356,30]
[423643232,1780271472000,-151.0,0.00038356,30]
[423643233,1780271472000,-151.0,0.00038356,30]
[423643239,1780271472000,-169.82706604,0.00038356,15]
[423643236,1780271472000,-151.0,0.00038356,30]
[423643229,1780271472000,-261.674456,0.00038356,30]
[423643234,1780271472000,-755.902331,0.00038356,30]
[423643235,1780271472000,-151.0,0.00038356,30]
[423643228,1780271472000,-755.902323,0.00038356,30]
[423643237,1780271472000,-151.0,0.00038356,30]
[423643231,1780271472000,-755.902323,0.00038356,30]
[423643227,1780271472000,-151.0,0.00038356,30]
[423643240,1780271472000,-315.84,0.0003838,105]
[423643252,1780271472000,-2849.85177406,0.0003842,30]
[423643251,1780271472000,-150.0,0.0003842,30]
[423643250,1780271472000,-1224.157,0.00038413,2]
[423643242,1780271472000,-620.75,0.000384,120]
[423643243,1780271472000,-2000.0,0.000384,101]
[423643244,1780271472000,-2000.0,0.000384,101]
[423643249,1780271472000,-3550.0,0.00038413,2]
[423643245,1780271472000,-2000.0,0.000384,101]
[423643246,1780271472000,-2000.0,0.000384,101]
[423643247,1780271472000,-221.0,0.000384,120]
[423643253,1780271472000,-150.0,0.0003842,30]
[423643255,1780271472000,-163.0,0.00038423,11]
[423643241,1780271472000,-253.89,0.000384,120]
[423643286,1780271472000,-386.0,0.00038701,2]
[423643289,1780271472000,-1300.0,0.00038726,60]
[423643311,1780271472000,-243.923631,0.000388,2]
[423643316,1780271472000,-1590.0,0.00038818,11]
[423643322,1780271472000,-2000.0,0.00038851,120]
[423643325,1780271472000,-320.0,0.00038866,55]
[423643326,1780271472000,-1624.80813581,0.0003888,60]
[423643328,1780271472000,-320.0,0.00038894,55]
[423643327,1780271472000,-632.0,0.00038884,14]
[423643332,1780271472000,-298.843414,0.000389,2]
[423643330,1780271472000,-1025.32279286,0.000389,31]
[423643329,1780271472000,-15930.78052226,0.000389,2]
[423643324,1780271472000,-3643.32431722,0.00038866,14]
[423643331,1780271472000,-304.843414,0.000389,2]
[423643334,1780271472000,-318.330383,0.000389,2]
[423643323,1780271472000,-2030.17866042,0.00038865,14]
[423643335,1780271472000,-315.330383,0.000389,2]
[423643338,1780271472000,-2110.0,0.00038915,2]
[423643341,1780271472000,-318.19,0.00038924,120]
[423643337,1780271472000,-386.0,0.00038903,2]
[423643339,1780271472000,-315.84,0.0003892,116]
[423643342,1780271472000,-1500.05,0.00038924,120]
[423643343,1780271472000,-510.84206724,0.00038934,90]
[423643345,1780271472000,-1590.0,0.00038945,11]
[423643340,1780271472000,-320.0,0.00038921,55]
[423643344,1780271472000,-1000.0,0.00038936,90]
[423643336,1780271472000,-410617.13179019,0.000389,2]
[423643346,1780271472000,-320.0,0.00038947,55]
[423643287,1780271472000,-320.0,0.00038705,53]
[423643313,1780271472000,-221.0,0.000388,120]
[423643314,1780271472000,-1000.0,0.00038803,90]
[423643333,1780271472000,-330.330385,0.000389,2]
[423643312,1780271472000,-7751.0,0.000388,14]
[423643285,1780271472000,-1000.0,0.0003869,90]
[423643315,1780271472000,-320.0,0.00038806,54]
[423643290,1780271472000,-320.0,0.00038741,53]
[423643292,1780271472000,-350.0,0.00038767,5]
[423643294,1780271472000,-1286.62,0.00038787,9]
[423643291,1780271472000,-386.0,0.00038741,2]
[423643293,1780271472000,-320.0,0.00038774,54]
[423643295,1780271472000,-150.72,0.00038787,9]
[423643297,1780271472000,-2000.0,0.0003879,106]
[423643301,1780271472000,-4551.15617274,0.000388,14]
[423643299,1780271472000,-963.50733857,0.00038795,7]
[423643300,1780271472000,-2864.01430343,0.00038799,2]
[423643298,1780271472000,-2319.0,0.00038792,11]
[423643308,1780271472000,-469.534199,0.000388,2]
[423643296,1780271472000,-2000.0,0.0003879,106]
[423643317,1780271472000,-157.99575144,0.00038831,2]
[423643318,1780271472000,-11506.74182026,0.00038834,2]
[423643303,1780271472000,-1017.559855,0.000388,3]
[423643319,1780271472000,-320.0,0.00038837,54]
[423643321,1780271472000,-503.22378459,0.00038849,120]
[423643320,1780271472000,-503.22378459,0.00038849,120]
[423643310,1780271472000,-246.923631,0.000388,2]
[423643309,1780271472000,-258.923632,0.000388,2]
[423643306,1780271472000,-100000.0,0.000388,7]
[423643307,1780271472000,-24818.0,0.000388,30]
[423643305,1780271472000,-4059.12836,0.000388,3]
[423643304,1780271472000,-15679.637723,0.000388,3]
[423643302,1780271472000,-47246.42356,0.000388,3]
[423643400,1780271473000,-500.0,0.00039058,2]
[423643384,1780271473000,-10130.80274184,0.00039,30]
[423643389,1780271473000,-825.0,0.0003902,5]
[423643388,1780271473000,-320.0,0.00039017,56]
[423643399,1780271473000,-500.0,0.00039058,2]
[423643381,1780271473000,-6100.0,0.00039,75]
[423643383,1780271473000,-2535.77208507,0.00039,120]
[423643387,1780271473000,-386.0,0.00039007,2]
[423643378,1780271473000,-245.82,0.00039,14]
[423643382,1780271473000,-11893.73907761,0.00039,120]
[423643379,1780271473000,-522.0,0.00039,120]
[423643390,1780271473000,-320.0,0.00039038,56]
[423643380,1780271473000,-313.6,0.00039,30]
[423643391,1780271473000,-2000.0,0.00039041,120]
[423643404,1780271473000,-500.0,0.00039058,2]
[423643398,1780271473000,-500.0,0.00039058,2]
[423643394,1780271473000,-500.0,0.00039058,2]
[423643397,1780271473000,-500.0,0.00039058,2]
[423643393,1780271473000,-500.0,0.00039058,2]
[423643395,1780271473000,-500.0,0.00039058,2]
[423643396,1780271473000,-500.0,0.00039058,2]
[423643401,1780271473000,-500.0,0.00039058,2]
[423643403,1780271473000,-500.0,0.00039058,2]
[423643412,1780271473000,-500.0,0.00039058,2]
[423643409,1780271473000,-500.0,0.00039058,2]
[423643408,1780271473000,-500.0,0.00039058,2]
[423643406,1780271473000,-500.0,0.00039058,2]
[423643385,1780271473000,-1459.0,0.00039,7]
[423643392,1780271473000,-350.0,0.00039057,4]
[423643386,1780271473000,-1000.0,0.00039,30]
[423643348,1780271473000,-1511.03419496,0.00038949,2]
[423643376,1780271473000,-2700.0,0.00039,2]
[423643405,1780271473000,-500.0,0.00039058,2]
[423643347,1780271473000,-1569.21681336,0.00038949,2]
[423643352,1780271473000,-250.0,0.00038964,2]
[423643349,1780271473000,-5000.0,0.00038964,2]
[423643355,1780271473000,-320.0,0.00038971,56]
[423643360,1780271473000,-2005.9555727,0.00038994,30]
[423643351,1780271473000,-5000.0,0.00038964,2]
[423643361,1780271473000,-320.0,0.00038995,56]
[423643359,1780271473000,-1377.42282658,0.00038994,30]
[423643357,1780271473000,-2878.0,0.00038989,38]
[423643353,1780271473000,-250.0,0.00038964,2]
[423643356,1780271473000,-392.0,0.00038974,2]
[423643354,1780271473000,-250.0,0.00038964,2]
[423643350,1780271473000,-5000.0,0.00038964,2]
[423643358,1780271473000,-1000.0,0.00038994,120]
[423643363,1780271473000,-160.0,0.00039,44]
[423643373,1780271473000,-89431.0,0.00039,7]
[423643374,1780271473000,-4000.0,0.00039,30]
[423643362,1780271473000,-222.0,0.00039,120]
[423643369,1780271473000,-3297.59881327,0.00039,2]
[423643365,1780271473000,-7001.6319072,0.00039,120]
[423643364,1780271473000,-160.0,0.00039,44]
[423643366,1780271473000,-31372.54441353,0.00039,2]
[423643367,1780271473000,-1392.33470964,0.00039,120]
[423643371,1780271473000,-222.0,0.00039,120]
[423643370,1780271473000,-3198.0,0.00039,120]
[423643368,1780271473000,-994.48,0.00039,7]
[423643372,1780271473000,-215.577506,0.00039,120]
[423643377,1780271473000,-822.31413427,0.00039,120]
[423643375,1780271473000,-524.7678404,0.00039,7]
[423643402,1780271473000,-500.0,0.00039058,2]
[423643446,1780271473000,-320.0,0.00039163,58]
[423643413,1780271473000,-295.66812534,0.00039058,2]
[423643452,1780271473000,-151.0,0.000392,120]
[423643453,1780271473000,-386.0,0.00039202,2]
[423643450,1780271473000,-453.05809892,0.00039182,2]
[423643448,1780271473000,-300.0,0.00039178,120]
[423643444,1780271473000,-150.0,0.00039146,120]
[423643447,1780271473000,-300.0,0.00039178,120]
[423643451,1780271473000,-7193.59,0.000392,2]
[423643445,1780271473000,-320.0,0.00039148,57]
[423643449,1780271473000,-396.353326,0.00039178,120]
[423643472,1780271473000,-734.83951618,0.0003927,2]
[423643458,1780271473000,-3000.0,0.00039225,30]
[423643455,1780271473000,-3000.0,0.00039225,30]
[423643456,1780271473000,-3000.0,0.00039225,30]
[423643454,1780271473000,-378.0,0.00039206,2]
[423643459,1780271473000,-3000.0,0.00039225,30]
[423643466,1780271473000,-437.83768779,0.00039225,30]
[423643467,1780271473000,-2000.0,0.00039231,120]
[423643461,1780271473000,-3000.0,0.00039225,30]
[423643462,1780271473000,-3000.0,0.00039225,30]
[423643463,1780271473000,-1694.41,0.00039225,30]
[423643464,1780271473000,-3000.0,0.00039225,30]
[423643465,1780271473000,-3000.0,0.00039225,30]
[423643471,1780271473000,-400.0,0.0003927,2]
[423643468,1780271473000,-386.0,0.00039235,2]
[423643469,1780271473000,-1328.27659266,0.0003926,30]
[423643470,1780271473000,-1934.38338736,0.0003926,30]
[423643473,1780271473000,-20839.59444734,0.00039282,2]
[423643407,1780271473000,-500.0,0.00039058,2]
[423643457,1780271473000,-3000.0,0.00039225,30]
[423643443,1780271473000,-399.05,0.00039145,30]
[423643460,1780271473000,-3000.0,0.00039225,30]
[423643438,1780271473000,-386.0,0.00039112,2]
[423643442,1780271473000,-609.82,0.00039145,30]
[423643411,1780271473000,-500.0,0.00039058,2]
[423643410,1780271473000,-500.0,0.00039058,2]
[423643415,1780271473000,-1590.0,0.00039063,11]
[423643425,1780271473000,-320.0,0.00039097,57]
[423643414,1780271473000,-320.0,0.00039059,56]
[423643427,1780271473000,-351.372884,0.000391,2]
[423643416,1780271473000,-2319.0,0.00039071,11]
[423643418,1780271473000,-2074.83975922,0.00039087,2]
[423643417,1780271473000,-320.0,0.00039078,57]
[423643421,1780271473000,-2529.8058123,0.00039087,2]
[423643419,1780271473000,-1448.16551452,0.00039087,2]
[423643423,1780271473000,-1384.25626573,0.00039087,2]
[423643420,1780271473000,-2341.37646919,0.00039087,2]
[423643426,1780271473000,-174.186441,0.000391,2]
[423643422,1780271473000,-2431.10654618,0.00039087,2]
[423643439,1780271473000,-320.0,0.00039114,57]
[423643424,1780271473000,-1425.33417843,0.00039087,2]
[423643433,1780271473000,-1000.0,0.000391,2]
[423643441,1780271473000,-320.0,0.00039131,57]
[423643436,1780271473000,-167.04437507,0.00039105,60]
[423643434,1780271473000,-315.0,0.000391,2]
[423643432,1780271473000,-428.440511,0.000391,2]
[423643437,1780271473000,-163.0,0.00039112,11]
[423643435,1780271473000,-157.99575144,0.00039105,2]
[423643429,1780271473000,-643.0,0.000391,2]
[423643431,1780271473000,-309.0,0.000391,2]
[423643430,1780271473000,-268.305256,0.000391,2]
[423643428,1780271473000,-345.372883,0.000391,2]
[423643440,1780271473000,-3221.58609734,0.00039116,2]
[423643503,1780271474000,-1191.11104074,0.00039331,30]
[423643501,1780271474000,-221.0,0.000393,120]
[423643517,1780271474000,-153.32827126,0.00039332,120]
[423643498,1780271474000,-800.0,0.00039299,14]
[423643500,1780271474000,-200.0,0.000393,10]
[423643502,1780271474000,-1521.46317608,0.0003932,30]
[423643504,1780271474000,-200.0,0.00039331,30]
[423643505,1780271474000,-8882.6885148,0.00039331,30]
[423643516,1780271474000,-500.0,0.00039331,30]
[423643508,1780271474000,-206.33422798,0.00039331,30]
[423643509,1780271474000,-151.0,0.00039331,30]
[423643507,1780271474000,-1734.62772924,0.00039331,30]
[423643510,1780271474000,-500.0,0.00039331,30]
[423643506,1780271474000,-644.79446245,0.00039331,30]
[423643512,1780271474000,-194.72792766,0.00039331,30]
[423643514,1780271474000,-670.58624095,0.00039331,30]
[423643513,1780271474000,-152.0,0.00039331,30]
[423643530,1780271474000,-250.0,0.00039361,2]
[423643499,1780271474000,-800.0,0.00039299,14]
[423643529,1780271474000,-250.0,0.00039361,2]
[423643511,1780271474000,-151.0,0.00039331,30]
[423643496,1780271474000,-800.0,0.00039299,14]
[423643482,1780271474000,-1798.80895522,0.00039299,30]
[423643495,1780271474000,-800.0,0.00039299,14]
[423643519,1780271474000,-150.33094002,0.00039332,120]
[423643475,1780271474000,-1280.88388877,0.00039287,30]
[423643476,1780271474000,-1865.36488656,0.00039287,30]
[423643474,1780271474000,-218.87046058,0.00039283,120]
[423643478,1780271474000,-1235.18214925,0.00039299,30]
[423643489,1780271474000,-157.84224006,0.00039299,30]
[423643483,1780271474000,-213.96859446,0.00039299,30]
[423643479,1780271474000,-200.0,0.00039299,30]
[423643485,1780271474000,-167.88477092,0.00039299,30]
[423643481,1780271474000,-668.65185756,0.00039299,30]
[423643477,1780271474000,-163.0,0.0003929,120]
[423643487,1780271474000,-554.85521661,0.00039299,46]
[423643486,1780271474000,-159.00591841,0.00039299,30]
[423643484,1780271474000,-500.0,0.00039299,30]
[423643488,1780271474000,-206.16125616,0.00039299,30]
[423643480,1780271474000,-8711.34798982,0.00039299,30]
[423643490,1780271474000,-295.23856588,0.00039299,30]
[423643494,1780271474000,-800.0,0.00039299,14]
[423643493,1780271474000,-800.0,0.00039299,14]
[423643492,1780271474000,-526.34906063,0.00039299,30]
[423643497,1780271474000,-800.0,0.00039299,14]
[423643491,1780271474000,-731.89793765,0.00039299,30]
[423643518,1780271474000,-165.00137927,0.00039332,120]
[423643515,1780271474000,-644.79446245,0.00039331,30]
[423643521,1780271474000,-178.090746,0.00039349,120]
[423643547,1780271474000,-632.0,0.00039418,15]
[423643553,1780271474000,-387.0,0.00039423,120]
[423643550,1780271474000,-85818.1196077,0.00039423,2]
[423643551,1780271474000,-85818.1196077,0.00039423,2]
[423643548,1780271474000,-2000.0,0.00039422,120]
[423643549,1780271474000,-85818.1196077,0.00039423,2]
[423643552,1780271474000,-85818.1196077,0.00039423,2]
[423643554,1780271474000,-507.0,0.00039423,120]
[423643555,1780271474000,-265.0,0.00039423,120]
[423643557,1780271474000,-691.0,0.00039423,120]
[423643559,1780271474000,-386.0,0.0003944,2]
[423643558,1780271474000,-163.0,0.0003943,120]
[423643569,1780271474000,-43812.66891372,0.0003949,24]
[423643568,1780271474000,-386.0,0.00039473,2]
[423643561,1780271474000,-386.0,0.00039448,2]
[423643563,1780271474000,-300.22473343,0.0003947,2]
[423643562,1780271474000,-386.0,0.00039467,2]
[423643564,1780271474000,-400.0,0.0003947,2]
[423643567,1780271474000,-378.0,0.00039472,2]
[423643566,1780271474000,-315.84,0.0003947,120]
[423643520,1780271474000,-178.090746,0.00039349,120]
[423643545,1780271474000,-157.00557815,0.00039415,20]
[423643546,1780271474000,-2110.0,0.00039415,2]
[423643560,1780271474000,-502.53307865,0.00039446,2]
[423643538,1780271474000,-5382.92,0.000394,120]
[423643556,1780271474000,-1097.0,0.00039423,120]
[423643522,1780271474000,-178.090746,0.00039349,120]
[423643527,1780271474000,-5000.0,0.00039361,2]